Cogmind - Beta 14 @@@ ROGUE MODE // 2025.05.01 @ 02:13:42 Player: Teshkan Result: Destroyed by X-62 Marksman with Pulse Rifle Performance ------------- Evolutions (2) 1000 Regions Visited (7) 1400 Robots Destroyed (42) 210 Value Destroyed (1156) 1156 Prototype IDs (0) 0 Alien Tech Used (0) 0 Bonus (313) 313 TOTAL SCORE: 4079 Bonus ------- High Alert Combat Kills 13 Aligned with FarCom 300 Cogmind --------- Core Integrity 0/550 Matter 117/400 Energy 97/100 System Corruption 0% Temperature Cool (55) Movement Core (50) Location -8/Materials Parts ------- > --- POWER (2) -------- (None) > --- PROPULSION (3) --- (None) > --- UTILITY (3) ------ Medium Matter Pod > --- WEAPON (3) ------- (None) > --- INVENTORY (5) ---- Improved Ion Engine Aluminum Leg Compact Wheel Small Storage Unit Advanced Targeting Computer Peak State ------------ > --- POWER ------------ Light Ion Engine > --- PROPULSION ------- Light Treads Armored Treads > --- UTILITY ---------- Medium Storage Unit Hardened Medium Armor Plating Hardened Medium Armor Plating > --- WEAPON ----------- Beam Cannon Autogun Missile Launcher > --- INVENTORY -------- Improved Ion Engine Aluminum Leg Improved Aluminum Leg Compact Wheel Small Storage Unit Medium Matter Pod Advanced Targeting Computer [Rating: 19] Favorites ----------- Power Ion Engine Engine Ion Engine Power Core Light Nuclear Core Propulsion Light Treads Treads Light Treads Leg Aluminum Leg Wheel Compact Wheel Utility Hardened Medium Armor Plating Device Structural Scanner Storage Medium Storage Unit Protection Hardened Medium Armor Plating Weapon Missile Launcher Energy Gun EM Pulse Gun Energy Cannon Beam Cannon Ballistic Gun Light Assault Rifle Launcher Missile Launcher Build | -11 -10 -10 -9 -9 -9 -8 -8 ------- Run | Yrd Mat Min Mat Min Exi Min Mat Slots Evolved 4 | . . . 2 . . . 2 Power 1 | . . . . . . . 1 Propulsion 1 | . . . 1 . . . . Utility 1 | . . . 1 . . . . Weapon 1 | . . . . . . . 1 Parts Attached 51 | 7 13 1 9 . 2 15 4 Power 7 | 2 3 . . . . 2 . Engine 6 | 2 3 . . . . 1 . Core 1 | . . . . . . 1 . Reactor . | . . . . . . . . Propulsion 17 | 2 5 . 2 . . 8 . Treads 9 | 2 1 . 2 . . 4 . Leg 2 | . . . . . . 2 . Wheel 6 | . 4 . . . . 2 . Hover . | . . . . . . . . Flight . | . . . . . . . . Utility 11 | 1 3 . 4 . . 1 2 Device 2 | . 1 . 1 . . . . Storage 5 | 1 2 . 1 . . . 1 Processor . | . . . . . . . . Hackware . | . . . . . . . . Protection 4 | . . . 2 . . 1 1 Artifact . | . . . . . . . . Weapon 16 | 2 2 1 3 . 2 4 2 Energy Gun 7 | . 2 1 2 . . 2 . Energy Cannon 1 | . . . . . . . 1 Ballistic Gun 3 | 2 . . . . . . 1 Ballistic Cannon . | . . . . . . . . Launcher 5 | . . . 1 . 2 2 . Special Weapon . | . . . . . . . . Impact Weapon . | . . . . . . . . Slashing Weapon . | . . . . . . . . Piercing Weapon . | . . . . . . . . Special Melee Weapon . | . . . . . . . . Unidentified Prototypes . | . . . . . . . . Corrupted Parts 1 | . . . . . . 1 . System Corruption 4 | . . . . . . 4 . Parts Lost 16 | . . . . . . 8 8 Power 2 | . . . . . . 1 1 Propulsion 4 | . . . . . . 2 2 Utility 4 | . . . . . . 2 2 Weapon 6 | . . . . . . 3 3 Highest Loss Streak 8 | . . . . . . 4 8 To Critical Strikes . | . . . . . . . . Average Slot Usage (%) 76 | . 79 100 88 88 88 60 62 Engine 8 | . 11 14 11 11 11 3 7 Treads 12 | . 9 . 14 22 22 5 14 Leg 5 | . . . . . . 14 . Wheel 4 | . 16 28 7 . . . . Storage 12 | . 14 28 12 11 11 11 10 Protection 13 | . . . 18 22 22 13 12 Energy Gun 7 | . 15 28 19 22 2 1 . Ballistic Gun 1 | . 10 . . . . . 6 Launcher 9 | . . . 2 . 19 10 6 Peak Build Rating 19 | 6 7 7 16 15 16 16 19 Average Rating 11 | 5 5 7 13 14 15 10 13 On Entrance 9 | . 6 7 7 14 15 16 13 Naked Turns . | . . . . . . . . Heaviest Build 38 | 13 16 16 36 36 38 38 38 Greatest Support 40 | 40 40 32 40 40 40 40 40 Greatest Overweight (x) 2 | . 1 . . . . 2 1 Average Overweight (x) . | . . . . . . . . Largest Inventory Capacity 10 | 8 8 8 10 10 10 10 10 Average Capacity 9 | 7 8 8 8 10 10 10 9 Most Carried 10 | 4 6 6 9 10 10 10 8 Average Carried 6 | 2 3 5 7 9 10 5 6 Final Capacity 10 | 8 8 8 10 10 10 10 5 Final Carried 10 | 4 4 6 9 10 10 8 5 Class Distribution -------------------- 91% | Mutant 8% | Scavenger-Mutant Dominant Class ---------------- Mutant | -10/Materials Mutant | -10/Mines Mutant | -9/Materials Mutant | -9/Mines Mutant | -9/Exiles Mutant | -8/Mines Mutant | -8/Materials Resources | -11 -10 -10 -9 -9 -9 -8 -8 ----------- Run | Yrd Mat Min Mat Min Exi Min Mat Matter Collected 1135 | 216 189 158 169 53 . 320 30 Remotely . | . . . . . . . . Salvage Created 1074 | . 212 158 268 . . 331 105 Parts 74 | . 8 10 26 . . 25 5 Haulers Intercepted 1 | . . . 1 . . . . Recyclers Shooed 2 | . . . 2 . . . . Parts Field Recycled . | . . . . . . . . Retrieved Matter . | . . . . . . . . Parts Self-Destructed . | . . . . . . . . Prevented . | . . . . . . . . Kills | -11 -10 -10 -9 -9 -9 -8 -8 ------- Run | Yrd Mat Min Mat Min Exi Min Mat Combat Hostiles Destroyed 35 | . 3 5 10 . . 15 2 Guns 11 | . 3 4 2 . . 2 . AOE 23 | . . . 8 . . 13 2 Classes Destroyed 10 | . 2 1 5 . . 2 . Worker 2 | . . . 1 . . 1 . Builder 1 | . . . . . . 1 . Tunneler 1 | . . . 1 . . . . Hauler 1 | . . . 1 . . . . Recycler 2 | . 1 . . . . 1 . Swarmer 12 | . . 3 3 . . 6 . Grunt 18 | . 3 2 4 . . 7 2 Brawler 1 | . . . 1 . . . . Duelist 2 | . . . . . . 2 . Sentry 2 | . . . 2 . . . . Best Kill Streak 9 | . 2 3 9 . . 6 2 Combat Bots Only 8 | . 2 3 8 . . 5 2 Max Kills in Single Turn 3 | . 1 2 3 . . 2 2 Gunslinging 1 | . . 1 . . . . . Exploded 3 | . . . 3 . . 2 2 Melee . | . . . . . . . . Uniques/NPCs Destroyed . | . . . . . . . . Combat | -11 -10 -10 -9 -9 -9 -8 -8 -------- Run | Yrd Mat Min Mat Min Exi Min Mat Hostile Shots Fired 214 | . 28 22 29 . . 73 62 Missed 68 | . 7 6 13 . . 23 19 Damage Taken 3213 | . 214 154 223 . . 1370 1252 Core 936 | . 52 61 12 . . 252 559 Absorbed by Shields . | . . . . . . . . Regen/Repaired (Parts) 20 | . 20 . . . . . . Core Remaining (%) 62 | 100 . 54 . . . 34 . Volleys Fired 112 | . 20 13 22 . . 37 20 Largest 3 | . 2 2 2 . . 2 3 Hottest 119 | . 80 80 85 . . 85 119 Shots Fired 166 | . 40 26 27 . . 45 28 Gun 104 | . 40 26 17 . . 16 5 Cannon 20 | . . . . . . . 20 Launcher 42 | . . . 10 . . 29 3 Special . | . . . . . . . . Kinetic 43 | . 38 . . . . . 5 Thermal 20 | . . . . . . . 20 Explosive 42 | . . . 10 . . 29 3 Electromagnetic 61 | . 2 26 17 . . 16 . Robot Hit Streak 12 | . 6 5 12 . . 4 10 Robot Miss Streak 5 | . 5 2 3 . . 3 3 Penetration Max . | . . . . . . . . Secondary Targets 1 | . . 1 . . . . . Max Gunslinging Chain 1 | . . 1 . . . . . Shots Hit Robots 93 | . 19 16 18 . . 22 18 Core Hits 77 | . 8 7 19 . . 36 7 Critical Kills . | . . . . . . . . Critical Parts Destroyed . | . . . . . . . . Critical Strikes 1 | . . 1 . . . . . Corrupt 1 | . . 1 . . . . . Melee Attacks . | . . . . . . . . Impact . | . . . . . . . . Slashing . | . . . . . . . . Piercing . | . . . . . . . . Sneak Attacks . | . . . . . . . . Combat Hostiles . | . . . . . . . . Follow-up Attacks . | . . . . . . . . Damage Inflicted 3859 | . 196 199 1154 . . 1706 604 Guns 714 | . 196 199 147 . . 99 73 Cannons 280 | . . . . . . . 280 Explosions 2847 | . . . 1007 . . 1589 251 Melee . | . . . . . . . . Ramming 18 | . . . . . . 18 . Kinetic 269 | . 196 . . . . . 73 Thermal 280 | . . . . . . . 280 Explosive 2847 | . . . 1007 . . 1589 251 Electromagnetic 445 | . . 199 147 . . 99 . Impact . | . . . . . . . . Slashing . | . . . . . . . . Piercing . | . . . . . . . . Highest Corruption 10 | . . . . . . 10 . Average Corruption 9 | . . . . . . 9 . Corruption Purged . | . . . . . . . . Corruption Blocked . | . . . . . . . . Effects 28 | . . . . . . 28 . Message Errors 7 | . . . . . . 7 . Matter Fused 10 | . . . . . . 10 . Heat Flow Errors 4 | . . . . . . 4 . Energy Discharges 2 | . . . . . . 2 . Data Loss (minor) 3 | . . . . . . 3 . Data Loss (major) 2 | . . . . . . 2 . Overload Shots . | . . . . . . . . Overflow Damage 91 | . . . 46 . . 39 6 Projectiles 6 | . . . . . . . 6 Explosions 85 | . . . 46 . . 39 . Melee . | . . . . . . . . Knockbacks . | . . . . . . . . Impact . | . . . . . . . . Kinetic . | . . . . . . . . Secondary . | . . . . . . . . Self-Inflicted Damage 377 | . . . . . . 366 11 Shots 12 | . . . . . . 11 1 Rammed 1 | . . . . . . 1 . Targets Rammed 1 | . . . . . . 1 . Kicked . | . . . . . . . . Crushed . | . . . . . . . . Highest Temperature 362 | . 18 213 216 . . 273 362 Average Temperature 98 | . 7 94 64 . . 75 216 Received Heat Transfer 855 | . 96 51 114 . . 342 252 Effects 2 | . . . . . . . 2 Shutdowns 1 | . . . . . . . 1 Energy Bleed 1 | . . . . . . . 1 Siege Activations . | . . . . . . . . Robots Corrupted 1 | . . 1 . . . . . Combat Hostiles 1 | . . 1 . . . . . Parts Fried 3 | . . 2 1 . . . . Impact Corruptions . | . . . . . . . . Robots Melted . | . . . . . . . . Combat Hostiles . | . . . . . . . . Parts Melted . | . . . . . . . . Heat Transferred 592 | . . . . . . . 592 Parts Sabotaged . | . . . . . . . . Parts Stolen . | . . . . . . . . Parts Stripped . | . . . . . . . . Power Chain Reactions . | . . . . . . . . Alert | -11 -10 -10 -9 -9 -9 -8 -8 ------- Run | Yrd Mat Min Mat Min Exi Min Mat Peak Influence 533 | . 123 182 533 207 . 334 111 Initial 207 | . . 47 70 207 . . 35 Average 170 | . 76 161 324 207 . 191 49 Maximum Alert Level 2 | . . . 2 1 . 1 . Low Security (%) 68 | 100 100 100 42 . . 54 100 Level 1 23 | . . . 6 100 . 45 . Level 2 7 | . . . 51 . . . . Level 3 . | . . . . . . . . Level 4 . | . . . . . . . . Level 5 . | . . . . . . . . High Security . | . . . . . . . . Max Security . | . . . . . . . . Squads Dispatched 8 | . 2 . 4 . . . 2 Investigation 2 | . . . 2 . . . . Extermination . | . . . . . . . . Reinforcement 6 | . 2 . 2 . . . 2 Assault . | . . . . . . . . Garrison . | . . . . . . . . Intercept . | . . . . . . . . Searches Triggered . | . . . . . . . . Construction Impeded . | . . . . . . . . Haulers Reinforced . | . . . . . . . . Active Scanning Responses . | . . . . . . . . Cargo Convoy Interrupts . | . . . . . . . . Stealth | -11 -10 -10 -9 -9 -9 -8 -8 --------- Run | Yrd Mat Min Mat Min Exi Min Mat Distress Signals 1 | . . . 1 . . . . Communications Jammed . | . . . . . . . . Distress Signals . | . . . . . . . . Times Spotted 48 | . 9 5 11 . . 15 8 Peak Tracking Total 4 | . 3 3 4 . . 4 4 Tactical Retreats 3 | . 1 . 2 . . . . Traps | -11 -10 -10 -9 -9 -9 -8 -8 ------- Run | Yrd Mat Min Mat Min Exi Min Mat Traps Triggered 4 | . 3 . 1 . . . . Indirectly . | . . . . . . . . Trap Hack Attempts . | . . . . . . . . Triggered . | . . . . . . . . Disarmed . | . . . . . . . . Reprogrammed . | . . . . . . . . Reused . | . . . . . . . . Traps Extracted . | . . . . . . . . Installed . | . . . . . . . . Triggered . | . . . . . . . . Machines | -11 -10 -10 -9 -9 -9 -8 -8 ---------- Run | Yrd Mat Min Mat Min Exi Min Mat Machines Disabled 4 | . . . 2 . . 2 . Max in Single Turn 2 | . . . 2 . . 1 . Machines Repaired . | . . . . . . . . Machines Dismantled . | . . . . . . . . Machines Sabotaged . | . . . . . . . . Overloaded Fab Kills . | . . . . . . . . Hacking | -11 -10 -10 -9 -9 -9 -8 -8 --------- Run | Yrd Mat Min Mat Min Exi Min Mat Machines Accessed 10 | . 2 . 1 . 4 1 2 Terminals 3 | . . . . . . 1 2 Fabricators . | . . . . . . . . Repair Stations 1 | . 1 . . . . . . Recycling Units 1 | . 1 . . . . . . Scanalyzers 1 | . . . 1 . . . . Garrison Access . | . . . . . . . . Total Hacks 64 | . 6 . 5 . 49 1 3 Successful 61 | . 3 . 5 . 49 1 3 Failed 3 | . 3 . . . . . . Catastrophic . | . . . . . . . . Database Lockouts . | . . . . . . . . Manual . | . . . . . . . . Terminals 4 | . . . . . . 1 3 Fabricators . | . . . . . . . . Repair Stations 5 | . 5 . . . . . . Recycling Units 1 | . 1 . . . . . . Scanalyzers 5 | . . . 5 . . . . Garrison Access . | . . . . . . . . Terminal Hacks 53 | . . . . . 49 1 3 Record 52 | . . . . . 49 1 2 Maintenance Status 1 | . . . . . . . 1 Fabricator Hacks . | . . . . . . . . Repair Station Hacks 3 | . 3 . . . . . . Scan Component 2 | . 2 . . . . . . Repair 1 | . 1 . . . . . . Recycling Unit Hacks . | . . . . . . . . Scanalyzer 5 | . . . 5 . . . . Insert Component 3 | . . . 3 . . . . Analyze 2 | . . . 2 . . . . Garrison Access Hacks . | . . . . . . . . Unauthorized Hacks . | . . . . . . . . Terminals . | . . . . . . . . Fabricators . | . . . . . . . . Repair Stations . | . . . . . . . . Recycling Units . | . . . . . . . . Scanalyzers . | . . . . . . . . Garrison Access . | . . . . . . . . Data Cores Recovered . | . . . . . . . . Used . | . . . . . . . . Hacking Detections 2 | . 1 . 1 . . . . Full Trace Events 1 | . . . 1 . . . . Feedback Events . | . . . . . . . . Feedback Blocked . | . . . . . . . . Robot Schematics Acquired . | . . . . . . . . Robots Built . | . . . . . . . . Authchips . | . . . . . . . . Time . | . . . . . . . . Total Robot Build Rating . | . . . . . . . . Part Schematics Acquired 2 | . . . 2 . . . . Parts Built . | . . . . . . . . Authchips . | . . . . . . . . Time . | . . . . . . . . Total Part Build Rating . | . . . . . . . . Parts Repaired 1 | . 1 . . . . . . Time 36 | . 36 . . . . . . Parts Recycled . | . . . . . . . . Recycled Matter . | . . . . . . . . Retrieved Matter . | . . . . . . . . Retrieved Components . | . . . . . . . . Parts Scanalyzed 2 | . . . 2 . . . . Part Schematics Acquired 2 | . . . 2 . . . . Parts Damaged . | . . . . . . . . Bothacking | -11 -10 -10 -9 -9 -9 -8 -8 ------------ Run | Yrd Mat Min Mat Min Exi Min Mat Used RIF Installer . | . . . . . . . . Robots Hacked . | . . . . . . . . Non-combat . | . . . . . . . . Combat . | . . . . . . . . Robot Hacks Applied . | . . . . . . . . Relay Couplers Released . | . . . . . . . . Fabnet Peak Effective % . | . . . . . . . . Robots Rewired . | . . . . . . . . Allies Hacked . | . . . . . . . . Hacks Repelled . | . . . . . . . . Allies | -11 -10 -10 -9 -9 -9 -8 -8 -------- Run | Yrd Mat Min Mat Min Exi Min Mat Total Allies . | . . . . . . . . Largest Group . | . . . . . . . . Highest-Rated Group . | . . . . . . . . Highest-Rated Ally . | . . . . . . . . Total Orders . | . . . . . . . . Ally Attacks . | . . . . . . . . Total Damage . | . . . . . . . . Kills . | . . . . . . . . Allies Corrupted . | . . . . . . . . Allies Melted . | . . . . . . . . Intel | -11 -10 -10 -9 -9 -9 -8 -8 ------- Run | Yrd Mat Min Mat Min Exi Min Mat Robot Analysis Total . | . . . . . . . . Derelict Logs Recovered . | . . . . . . . . Drone Launches . | . . . . . . . . Drone Recoveries . | . . . . . . . . Exploration | -11 -10 -10 -9 -9 -9 -8 -8 ------------- Run | Yrd Mat Min Mat Min Exi Min Mat Turns Passed 2905 | 93 351 175 316 51 802 949 168 Spaces Moved 1563 | 49 199 100 170 32 498 432 83 Core 30 | 2 9 . . . . . 19 Treads 879 | 47 44 . 92 32 498 102 64 Legs 330 | . . . . . . 330 . Wheels 324 | . 146 100 78 . . . . Hover . | . . . . . . . . Flight . | . . . . . . . . Fastest Speed 50 | 50 100 100 100 160 160 160 50 Average Speed 154 | 155 113 100 132 160 160 190 139 Slowest Speed 260 | 160 160 100 160 160 160 260 250 Overloaded Moves . | . . . . . . . . Propulsion Burnouts . | . . . . . . . . Robots Hopped . | . . . . . . . . Cave-ins Triggered 2 | . . . . . . 1 1 Exploration Rate (%) 31 | 4 31 15 21 13 73 84 9 Regions Visited 7 Branch Regions 4 Pre-discovered Areas 1 | . . . . . 1 . . Known Exits Taken . | . . . . . . . . Unknown Exits Taken 7 | 1 1 1 1 1 1 1 . Scrap Searched 2 | . . . . 1 . 1 . Spaces Dug . | . . . . . . . . Terrain Destroyed 388 | . . . 118 . . 239 31 Melee . | . . . . . . . . Projectile . | . . . . . . . . AOE 388 | . . . 118 . . 239 31 Terrain Rammed . | . . . . . . . . Walls Destroyed . | . . . . . . . . Machines Disabled . | . . . . . . . . Actions | -11 -10 -10 -9 -9 -9 -8 -8 --------- Run | Yrd Mat Min Mat Min Exi Min Mat Total 1880 | 65 288 148 231 32 502 504 110 Wait 104 | . 43 33 13 . 2 13 . Move 1556 | 48 198 99 169 31 497 431 83 Hop . | . . . . . . . . Pick Up 43 | 10 11 2 11 1 . 6 2 Fast Attach . | . . . . . . . . Attach 31 | 6 11 . 1 . . 9 4 Detach 3 | . 1 . . . . 1 1 Swap 20 | 1 2 1 8 . 2 6 . Drop 9 | . 2 . 7 . . . . Fire 112 | . 20 13 22 . . 37 20 Melee . | . . . . . . . . Ram . | . . . . . . . . Kick . | . . . . . . . . Crush 1 | . . . . . . 1 . Escape Stasis . | . . . . . . . . Rewire 1 | . . . . . 1 . . Trap . | . . . . . . . . Miscellaneous . | . . . . . . . . Route ------- -11/Scrapyard -10/Materials (discovered 2 exits: *Mat / [*Min]) -10/Mines -9/Materials -9/Mines -9/Exiles (discovered 2 exits: *Min x2) -8/Mines -8/Materials History --------- Turn | Location | Event 10 | -11/Scrapyard | Discovered new exit (range 15) 94 | -11/Scrapyard | Entered Materials 236 | -10/Materials | Discovered new exit (range 15) 309 | -10/Materials | Build established: Mutant 342 | -10/Materials | Repaired Broken Ion Engine 393 | -10/Materials | Discovered new exit (range 6) 445 | -10/Materials | Entered Mines 519 | -10/Mines | Discovered new exit (range 3) 620 | -10/Mines | Entered Materials 620 | -9/Materials | Evolved 2 slots: Propulsion x1, Utility x1 794 | -9/Materials | Destroyed 8 combat bots 918 | -9/Materials | Met 8R-AWN 921 | -9/Materials | Discovered new exit (range 9) 936 | -9/Materials | Entered Mines 938 | -9/Mines | Followed 8R-AWN into the Mines 981 | -9/Mines | Discovered new exit (range 5) 987 | -9/Mines | Entered Exiles 1026 | -9/Exiles | Welcomed by 8R-AWN 1063 | -9/Exiles | Met EX-HEX 1150 | -9/Exiles | Met EX-DEC 1190 | -9/Exiles | Learned location of Zion (-7) 1250 | -9/Exiles | Discovered new exit (range 14) 1406 | -9/Exiles | Met EX-BIN 1434 | -9/Exiles | Aligned with FarCom system 1435 | -9/Exiles | Given EX-Vault access code 1725 | -9/Exiles | Learned about 8R-AWN's background 1766 | -9/Exiles | Discovered new exit (range 15) 1789 | -9/Exiles | Entered Mines 1798 | -8/Mines | Crushed by falling debris 1875 | -8/Mines | System corruption reached 10% 2024 | -8/Mines | Core integrity fell below 50% 2048 | -8/Mines | Lost 4 parts (1n2u1w) 2729 | -8/Mines | Discovered new exit (range 6) 2738 | -8/Mines | Entered Materials 2738 | -8/Materials | Evolved 2 slots: Power x1, Weapon x1 2894 | -8/Materials | Crushed by falling debris 2894 | -8/Materials | Core integrity fell below 50% 2903 | -8/Materials | Core integrity fell below 20% 2906 | -8/Materials | Destroyed by X-62 Marksman with Pulse Rifle Last Messages --------------- 02894_ Crushed by falling debris. 02894_ Knocked back. 02897_ Beam Cannon destroyed. 02897_ M-13 Machinist repairs G-47 Trooper. 02897_ U-05 Engineer lays Concrete. 02898_ Penetrated by Slug. 02899_ M-13 Machinist fits Backup Propulsion I on G-47 Trooper. 02899_ U-05 Engineer builds a Wall. 02899_ U-05 Engineer lays Concrete. 02900_ Penetrated by Slug. 02900_ M-13 Machinist destroyed. 02901_ Penetrated by Slug. 02901_ U-05 Engineer builds a Wall. 02902_ The unstable cave ceiling collapses. 02904_ Penetrated by Slug. 02904_ U-05 Engineer builds a Wall. 02906_ U-05 Engineer lays Concrete. 02906_ Penetrated by Slug. 02906_ Processing Tank disabled. Map ----- +----------------------------------------------------+ | ???????####+### #????????????????????????????? | | ???????# T ## ##????????????????????????????? | | ???????# ## #?????????????????????????????? | | ???????# """" ## #?????????????????????????????? | | ???????# """" ## #?????????????????????????????? | | ???????# """" ## #?????????????????????????????? | | ???????# ## #?#####???????????????????????? | | ???????######### ### # ###?????????????????????? | | ??????????????# "" ""%"#?????????????????????? | | ??????????????# ! #?????????????????????? | | ??????????????# T % = %###???????????????????? | | ??????????????# % #???????????????????? | | ??????????????# ### #???????????????????? | | ??????????????######### #???????????????????? | | ?????????????????????# = ###???????????????????? | | ?????????????????????## xHg #???????????????????? | | ?????????????????????# # u# #???????????????????? | | ?????????????????????# # ###???????????????????? | | ?????????????????????###= u##????????????????????? | | ???????????????########%x= ##########/#?????????? | | ???????????????# !% ????????? | | ???????????????# ????????? | | ???????????????# ????????? | | ???????????????# #### #############????????? | | ???????????????# ??#####/#####??????????????????? | | ???????????????# ???# t @ #??????????????????? | | ???????????????#????# """ """ #??????????????????? | | ????????????????????# """ """ #??????????????????? | | ?????????????g??????+ """ """ #??????????????????? | | ????????????????????# """ """ #??????????????????? | | ????????????????????# """ "" #??????????????????? | | ?????????????????????? ????????????????????? | | ??????????????????????? ! ?????????????????????? | | ???????????g???????????#####?????????????????????? | | ?????????????????????????????????????????????????? | | ?????????????????????????????????????????????????? | | ?????????????????????????????????????Y???????????? | | ?????????????????????????????????????????????????? | | ?????????????????????????????????????????????????? | | ?????????????????????????????????????????????????? | | ?????????????????????????????????????????????????? | | ?????????????????????????????????????????????????? | | ?????????????????????????????????????????????????? | | ?????????????????????????????????????????????????? | | ?????????????????????????????????????????????????? | | ?????????????????????????????????????????????????? | | ?????????????????????????????????????????????????? | | ?????????????????????????????????????????????????? | | ?????????????????????????????????????????????????? | | ?????????????????????????????????????????????????? | +----------------------------------------------------+ Best States ------------- Heat Dissipation 35 Energy Generation 14 Energy Capacity 250 Matter Stores 387 Matter Capacity 400 Sight Range 16 Terrain Scan Density 10 Armor Coverage 450 Evasion (%) 44 Recoil Reduction 2 Item Schematics ----------------- EM Pulse Gun | -9/Materials | Scanalyzed Lgt. Ion Engine | -9/Materials | Scanalyzed Robot Schematics ------------------ None Fabricated ------------ Nothing Alien Tech Used ----------------- None Achievements -------------- Librarian Part-time Mechanic Remodeling System Compromised Unlikely Earthworm Challenges ------------ None Game ------ Seed WeaponsWarpBay Manual? 0 Play Time 00:49:12 Cumulative 2.5 hours Start 2025.05.01 @ 01:24:07 End 2025.05.01 @ 02:13:42 Sessions 1 Manual Loads 0 Difficulty Rogue Special Mode None Game No. 4 Rogue 4 Adventurer 0 Explorer 0 Win Type - Total 0 Types 0/0/0/0/0/0/0/0/0 Lore% 5 Gallery% 5 Achievement% 7 Wizard Run 0 Options --------- Layout 1 ASCII 0 Keyboard 0 Movement Numpad Keybinds 0 Fullscreen 1 Font 32/SmallcapsGlow Map View 50x35 Zoom Use 0% Tactical HUD 1 Map Filters NONE Filters NONE Steam 1 RUN: a31f6f57-8535-49d3-8657-9d46d1b5c0b3